[Event "Deloitte NK 2021"]
[Site "Hoogeveen, Netherlands"]
[Date "2021.10.18"]
[Round "4.1"]
[White "Lai, Hing Ting"]
[Black "Janssen, Ruud"]
[Result "1-0"]
[TimeControl "90min/40moves + 30min + 30sec/move"]
[WhiteElo "2439"]
[BlackElo "2534"]

1. d4 {[%clk 01:30:57]} {[%emt 00:00:02]} Nf6 {[%clk 01:30:46]} {[%emt
00:00:15]} 2. c4 {[%clk 01:31:16]} {[%emt 00:00:11]} e6 {[%clk 01:31:05]}
{[%emt 00:00:10]} 3. Nf3 {[%clk 01:31:32]} {[%emt 00:00:15]} d5 {[%clk
01:31:10]} {[%emt 00:00:25]} 4. g3 {[%clk 01:31:47]} {[%emt 00:00:15]} dxc4
{[%clk 01:31:18]} {[%emt 00:00:22]} 5. Bg2 {[%clk 01:31:59]} {[%emt 00:00:18]}
c5 {[%clk 01:31:20]} {[%emt 00:00:28]} 6. O-O {[%clk 01:31:54]} {[%emt
00:00:35]} Nc6 {[%clk 01:31:36]} {[%emt 00:00:14]} 7. Qa4 {[%clk 01:30:30]}
{[%emt 00:01:54]} Bd7 {[%clk 01:28:37]} {[%emt 00:03:29]} 8. Qxc4 {[%clk
01:26:29]} {[%emt 00:04:31]} b5 {[%clk 01:28:14]} {[%emt 00:00:52]} 9. Qd3
{[%clk 01:25:09]} {[%emt 00:01:50]} c4 {[%clk 01:27:45]} {[%emt 00:00:59]} 10.
Qd1 {[%clk 01:23:38]} {[%emt 00:02:01]} Rc8 {[%clk 01:25:52]} {[%emt 00:02:23]}
11. Re1 {[%clk 01:21:03]} {[%emt 00:03:06]} Be7 {[%clk 01:05:00]} {[%emt
00:21:21]} 12. e4 {[%clk 01:20:27]} {[%emt 00:01:07]} O-O {[%clk 00:59:17]}
{[%emt 00:06:13]} 13. a4 {[%clk 01:03:21]} {[%emt 00:17:36]} a6 {[%clk
00:33:22]} {[%emt 00:26:25]} 14. axb5 {[%clk 00:53:01]} {[%emt 00:10:50]} axb5
{[%clk 00:33:47]} {[%emt 00:00:05]} 15. Qe2 {[%clk 00:49:47]} {[%emt 00:03:43]}
Na5 {[%clk 00:30:34]} {[%emt 00:03:44]} 16. Bg5 {[%clk 00:34:04]} {[%emt
00:16:13]} b4 {[%clk 00:24:32]} {[%emt 00:06:31]} 17. Nbd2 {[%clk 00:30:29]}
{[%emt 00:04:06]} h6 {[%clk 00:23:42]} {[%emt 00:01:20]} 18. Be3 {[%clk
00:27:58]} {[%emt 00:03:01]} c3 {[%clk 00:11:40]} {[%emt 00:12:32]} 19. bxc3
{[%clk 00:28:22]} {[%emt 00:00:06]} bxc3 {[%clk 00:12:07]} {[%emt 00:00:03]} 20.
Nf1 {[%clk 00:28:36]} {[%emt 00:00:16]} Nc6 {[%clk 00:11:43]} {[%emt 00:00:54]}
21. Ne5 {[%clk 00:26:49]} {[%emt 00:02:17]} Nb4 {[%clk 00:11:09]} {[%emt
00:01:04]} 22. Rec1 {[%clk 00:26:28]} {[%emt 00:00:51]} Qb6 {[%clk 00:08:29]}
{[%emt 00:03:10]} 23. Nxd7 {[%clk 00:24:47]} {[%emt 00:02:11]} Nxd7 {[%clk
00:08:57]} {[%emt 00:00:03]} 24. d5 {[%clk 00:22:28]} {[%emt 00:02:48]} Bc5
{[%clk 00:05:51]} {[%emt 00:03:36]} 25. Rxc3 {[%clk 00:15:15]} {[%emt
00:07:43]} Bxe3 {[%clk 00:06:15]} {[%emt 00:00:06]} 26. Rxe3 {[%clk 00:15:02]}
{[%emt 00:00:43]} Nc2 {[%clk 00:03:40]} {[%emt 00:03:05]} 27. Ra6 {[%clk
00:15:03]} {[%emt 00:00:30]} Qb1 {[%clk 00:03:16]} {[%emt 00:00:54]} 28. Rd3
{[%clk 00:13:10]} {[%emt 00:02:22]} Nc5 {[%clk 00:01:56]} {[%emt 00:01:50]} 29.
Rd1 {[%clk 00:13:16]} {[%emt 00:00:24]} Qb4 {[%clk 00:01:58]} {[%emt 00:00:28]}
30. Ra2 {[%clk 00:11:57]} {[%emt 00:01:49]} Nd4 {[%clk 00:02:14]} {[%emt
00:00:14]} 31. Qh5 {[%clk 00:09:30]} {[%emt 00:02:57]} Na4 {[%clk 00:01:39]}
{[%emt 00:01:06]} 32. Qe5 {[%clk 00:07:25]} {[%emt 00:02:35]} Rc4 {[%clk
00:01:29]} {[%emt 00:00:40]} 33. Ne3 {[%clk 00:05:48]} {[%emt 00:02:07]} f6
{[%emt 00:01:14]} 34. Qh5 {[%clk 00:05:53]} Rc5 {[%clk 00:01:21]} {[%emt
00:00:18]} 35. Qg4 {[%clk 00:05:36]} {[%emt 00:00:47]} e5 {[%clk 00:01:04]}
{[%emt 00:00:47]} 36. Rda1 {[%emt 00:02:13]} Ra8 {[%clk 00:01:00]} 37. d6
{[%clk 00:03:27]} {[%emt 00:01:29]} Rca5 {[%clk 00:01:09]} {[%emt 00:00:22]} 38.
d7 {[%clk 00:03:37]} {[%emt 00:00:20]} Qd6 {[%clk 00:01:11]} {[%emt 00:00:28]}
39. Nc4 {[%clk 00:03:44]} {[%emt 00:00:22]} 1-0

[Event "Deloitte NK 2021"]
[Site "Hoogeveen, Netherlands"]
[Date "2021.10.18"]
[Round "4.2"]
[White "Ernst, Sipke"]
[Black "Zwirs, Nico"]
[Result "1/2-1/2"]
[TimeControl "90min/40moves + 30min + 30sec/move"]
[WhiteElo "2534"]
[BlackElo "2439"]

1. d4 {[%clk 01:30:56]} {[%emt 00:00:03]} d5 {[%clk 01:30:53]} {[%emt
00:00:08]} 2. c4 {[%clk 01:31:22]} {[%emt 00:00:04]} e6 {[%clk 01:31:15]}
{[%emt 00:00:07]} 3. Nf3 {[%clk 01:31:37]} {[%emt 00:00:14]} Nf6 {[%clk
01:31:39]} {[%emt 00:00:07]} 4. Nc3 {[%clk 01:31:54]} {[%emt 00:00:14]} dxc4
{[%clk 01:29:12]} {[%emt 00:02:57]} 5. Qa4+ {[%clk 01:27:52]} {[%emt 00:04:32]}
c6 {[%clk 01:28:18]} {[%emt 00:01:24]} 6. Qxc4 {[%clk 01:28:15]} {[%emt
00:00:07]} b5 {[%clk 01:28:39]} {[%emt 00:00:08]} 7. Qd3 {[%clk 01:28:25]}
{[%emt 00:00:20]} Bb7 {[%clk 01:28:25]} {[%emt 00:00:44]} 8. Bg5 {[%clk
01:20:36]} {[%emt 00:08:20]} Nbd7 {[%clk 01:23:43]} {[%emt 00:05:12]} 9. e4
{[%clk 01:14:11]} {[%emt 00:06:55]} b4 {[%clk 01:19:31]} {[%emt 00:04:43]} 10.
Na4 {[%clk 01:11:53]} {[%emt 00:02:46]} Qa5 {[%clk 01:09:50]} {[%emt 00:10:12]}
11. b3 {[%clk 01:08:25]} {[%emt 00:03:58]} c5 {[%clk 01:04:55]} {[%emt
00:05:25]} 12. Bxf6 {[%clk 01:03:47]} {[%emt 00:05:08]} gxf6 {[%clk 00:57:14]}
{[%emt 00:08:11]} 13. d5 {[%clk 01:00:18]} {[%emt 00:04:00]} O-O-O {[%clk
00:49:15]} {[%emt 00:08:29]} 14. dxe6 {[%clk 00:52:29]} {[%emt 00:08:19]} Nb6
{[%clk 00:36:12]} {[%emt 00:13:32]} 15. Nxb6+ {[%clk 00:44:56]} {[%emt
00:08:04]} Qxb6 {[%clk 00:36:26]} {[%emt 00:00:16]} 16. Qe3 {[%clk 00:40:34]}
{[%emt 00:04:50]} Qxe6 {[%clk 00:34:01]} {[%emt 00:02:56]} 17. Bc4 {[%clk
00:34:39]} {[%emt 00:06:25]} Qxe4 {[%clk 00:26:48]} {[%emt 00:07:44]} 18. Qxe4
{[%clk 00:30:42]} {[%emt 00:04:26]} Bxe4 {[%clk 00:27:06]} {[%emt 00:00:12]} 19.
Bxf7 {[%clk 00:30:57]} {[%emt 00:00:16]} Bd6 {[%clk 00:21:17]} {[%emt
00:06:19]} 20. O-O {[%clk 00:23:16]} {[%emt 00:08:10]} Bxf3 {[%clk 00:17:22]}
{[%emt 00:04:25]} 21. gxf3 {[%clk 00:23:36]} {[%emt 00:00:09]} Be5 {[%clk
00:17:48]} {[%emt 00:00:04]} 22. Rad1 {[%clk 00:18:04]} {[%emt 00:06:01]} Rxd1
{[%clk 00:10:02]} {[%emt 00:08:18]} 23. Rxd1 {[%clk 00:18:29]} {[%emt
00:00:05]} Rd8 {[%clk 00:10:29]} {[%emt 00:00:04]} 24. Rxd8+ {[%clk 00:17:03]}
{[%emt 00:01:56]} Kxd8 {[%clk 00:10:50]} {[%emt 00:00:09]} 25. h4 {[%clk
00:16:53]} {[%emt 00:00:40]} Ke7 {[%clk 00:11:11]} {[%emt 00:00:09]} 26. Bg8
{[%clk 00:16:40]} {[%emt 00:00:42]} h6 {[%clk 00:10:17]} {[%emt 00:01:24]} 27.
Kf1 {[%clk 00:12:20]} {[%emt 00:04:50]} f5 {[%clk 00:05:49]} {[%emt 00:04:58]}
28. Bh7 {[%clk 00:12:34]} {[%emt 00:00:16]} Ke6 {[%clk 00:05:23]} {[%emt
00:00:56]} 29. Bg8+ {[%clk 00:12:56]} {[%emt 00:00:09]} Ke7 {[%clk 00:05:04]}
{[%emt 00:00:49]} 30. Bh7 {[%clk 00:13:23]} {[%emt 00:00:03]} Ke6 {[%clk
00:05:27]} {[%emt 00:00:07]} 31. Bg8+ {[%clk 00:13:50]} {[%emt 00:00:03]} Kf6
{[%clk 00:04:22]} {[%emt 00:01:35]} 32. h5 {[%clk 00:10:00]} {[%emt 00:04:19]}
Kg5 {[%clk 00:04:38]} {[%emt 00:00:14]} 33. Bf7 {[%clk 00:10:23]} {[%emt
00:00:07]} c4 {[%clk 00:01:11]} {[%emt 00:03:58]} 34. Bxc4 {[%clk 00:06:52]}
{[%emt 00:04:00]} Kxh5 {[%clk 00:01:39]} {[%emt 00:00:02]} 35. Kg2 {[%clk
00:06:34]} {[%emt 00:00:48]} Kg5 {[%clk 00:02:04]} {[%emt 00:00:05]} 36. Be6
{[%clk 00:05:20]} {[%emt 00:01:44]} Kf4 {[%clk 00:02:25]} {[%emt 00:00:10]} 37.
Bd7 {[%clk 00:01:41]} {[%emt 00:04:09]} Bf6 {[%clk 00:02:48]} {[%emt 00:00:06]}
38. Be8 {[%clk 00:00:50]} {[%emt 00:01:22]} Bh4 {[%clk 00:03:05]} {[%emt
00:00:11]} 39. Bd7 {[%clk 00:00:49]} {[%emt 00:00:31]} a5 {[%clk 00:03:21]}
{[%emt 00:00:14]} 40. Bb5 {[%clk 00:00:44]} {[%emt 00:00:34]} Ke5 {[%clk
00:03:30]} {[%emt 00:00:23]} 41. Bd7 {[%clk 00:26:46]} {[%emt 00:04:28]} f4
{[%clk 00:31:23]} {[%emt 00:02:36]} 42. Kh3 {[%clk 00:24:32]} {[%emt 00:02:45]}
Bg5 {[%clk 00:31:16]} {[%emt 00:00:37]} 43. Kg2 {[%clk 00:19:20]} {[%emt
00:05:43]} Kd4 {[%clk 00:30:57]} {[%emt 00:00:49]} 44. Kf1 {[%clk 00:19:07]}
{[%emt 00:00:43]} Kc3 {[%clk 00:31:04]} {[%emt 00:00:22]} 45. Ba4 {[%clk
00:19:28]} {[%emt 00:00:09]} Kb2 {[%clk 00:31:21]} {[%emt 00:00:12]} 46. Kg2
{[%clk 00:19:51]} {[%emt 00:00:09]} Kxa2 {[%clk 00:31:40]} {[%emt 00:00:11]} 47.
Kf1 {[%clk 00:20:02]} {[%emt 00:00:18]} Kb2 {[%clk 00:31:59]} {[%emt 00:00:11]}
48. Kg2 {[%clk 00:20:20]} {[%emt 00:00:13]} Kc3 {[%clk 00:32:13]} {[%emt
00:00:16]} 49. Kf1 {[%clk 00:20:05]} {[%emt 00:00:45]} Bd8 {[%clk 00:30:34]}
{[%emt 00:02:08]} 50. Kg2 {[%clk 00:18:13]} {[%emt 00:02:23]} Kd2 {[%clk
00:30:08]} {[%emt 00:00:56]} 51. Kf1 {[%clk 00:18:32]} {[%emt 00:00:11]} h5
{[%clk 00:30:20]} {[%emt 00:00:17]} 52. Be8 {[%clk 00:16:05]} {[%emt 00:02:57]}
h4 {[%clk 00:30:35]} {[%emt 00:00:16]} 53. Bd7 {[%clk 00:16:30]} {[%emt
00:00:04]} Bb6 {[%clk 00:29:12]} {[%emt 00:01:53]} 54. Bb5 {[%clk 00:13:52]}
{[%emt 00:03:08]} Bc7 {[%clk 00:16:02]} {[%emt 00:13:41]} 55. Bd7 {[%clk
00:13:59]} {[%emt 00:00:23]} h3 {[%clk 00:13:51]} {[%emt 00:02:41]} 56. Bc6
{[%clk 00:08:52]} {[%emt 00:05:37]} Bd8 {[%clk 00:09:55]} {[%emt 00:04:25]} 57.
Kg1 {[%clk 00:09:04]} {[%emt 00:00:18]} Ke2 {[%clk 00:09:32]} {[%emt 00:00:53]}
58. Kh2 {[%clk 00:09:26]} {[%emt 00:00:08]} a4 {[%clk 00:09:37]} {[%emt
00:00:25]} 59. Bxa4 {[%clk 00:09:52]} {[%emt 00:00:06]} Kxf3 {[%clk 00:10:02]}
{[%emt 00:00:04]} 60. Kxh3 {[%clk 00:10:11]} {[%emt 00:00:11]} Kxf2 {[%clk
00:10:27]} {[%emt 00:00:05]} 61. Kg4 {[%clk 00:10:28]} {[%emt 00:00:13]} Ke3
{[%clk 00:10:54]} {[%emt 00:00:03]} 62. Bc6 {[%clk 00:10:52]} {[%emt 00:00:05]}
Bc7 {[%clk 00:11:21]} {[%emt 00:00:03]} 1/2-1/2

[Event "Deloitte NK 2021"]
[Site "Hoogeveen, Netherlands"]
[Date "2021.10.18"]
[Round "4.3"]
[White "Ten Hertog, Hugo"]
[Black "Van den Doel, Erik"]
[Result "1/2-1/2"]
[TimeControl "90min/40moves + 30min + 30sec/move"]
[WhiteElo "2519"]
[BlackElo "2601"]

1. e4 {[%clk 01:30:51]} {[%emt 00:00:08]} e5 {[%clk 01:30:09]} {[%emt
00:00:52]} 2. Nf3 {[%clk 01:31:07]} {[%emt 00:00:14]} Nc6 {[%clk 01:30:34]}
{[%emt 00:00:05]} 3. d4 {[%clk 01:31:31]} {[%emt 00:00:05]} exd4 {[%clk
01:30:58]} {[%emt 00:00:07]} 4. Nxd4 {[%clk 01:31:58]} {[%emt 00:00:03]} Nf6
{[%clk 01:31:21]} {[%emt 00:00:07]} 5. Nxc6 {[%clk 01:32:24]} {[%emt 00:00:03]}
bxc6 {[%clk 01:31:46]} {[%emt 00:00:05]} 6. e5 {[%clk 01:32:40]} {[%emt
00:00:14]} Qe7 {[%clk 01:32:10]} {[%emt 00:00:06]} 7. Qe2 {[%clk 01:33:07]}
{[%emt 00:00:03]} Nd5 {[%clk 01:32:32]} {[%emt 00:00:08]} 8. c4 {[%clk
01:33:31]} {[%emt 00:00:06]} Ba6 {[%clk 01:23:28]} {[%emt 00:09:35]} 9. b3
{[%clk 01:33:47]} {[%emt 00:00:14]} g6 {[%clk 01:21:49]} {[%emt 00:02:09]} 10.
Ba3 {[%clk 01:34:10]} {[%emt 00:00:07]} Nb4 {[%clk 01:21:21]} {[%emt 00:00:58]}
11. Bb2 {[%clk 01:34:10]} {[%emt 00:00:30]} Bg7 {[%clk 01:20:06]} {[%emt
00:01:45]} 12. a3 {[%clk 01:31:11]} {[%emt 00:03:29]} Nd5 {[%clk 01:20:21]}
{[%emt 00:00:15]} 13. Nd2 {[%clk 01:31:32]} {[%emt 00:00:08]} O-O {[%clk
01:13:53]} {[%emt 00:06:58]} 14. O-O-O {[%clk 01:28:07]} {[%emt 00:03:56]} Rfe8
{[%clk 01:06:13]} {[%emt 00:08:10]} 15. Qf3 {[%clk 00:58:01]} {[%emt 00:30:35]}
Nb6 {[%clk 01:06:02]} {[%emt 00:00:42]} 16. Ne4 {[%clk 00:56:27]} {[%emt
00:02:04]} Bxe5 {[%clk 00:45:48]} {[%emt 00:20:44]} 17. Bxe5 {[%clk 00:53:44]}
{[%emt 00:03:12]} Qxe5 {[%clk 00:46:05]} {[%emt 00:00:14]} 18. Nf6+ {[%clk
00:54:11]} {[%emt 00:00:03]} Kf8 {[%clk 00:44:58]} {[%emt 00:01:38]} 19. Nxe8
{[%clk 00:51:45]} {[%emt 00:02:55]} Qa1+ {[%clk 00:44:43]} {[%emt 00:00:46]} 20.
Kc2 {[%clk 00:51:31]} {[%emt 00:00:42]} Qa2+ {[%clk 00:45:09]} {[%emt
00:00:05]} 21. Kc1 {[%clk 00:49:07]} {[%emt 00:02:53]} Qa1+ {[%clk 00:43:52]}
{[%emt 00:01:49]} 22. Kc2 {[%clk 00:49:25]} {[%emt 00:00:11]} Qa2+ {[%clk
00:44:17]} {[%emt 00:00:05]} 23. Kc1 {[%clk 00:49:50]} {[%emt 00:00:05]} Qa1+
{[%clk 00:09:50]} {[%emt 00:34:57]} 1/2-1/2

[Event "Deloitte NK 2021"]
[Site "Hoogeveen, Netherlands"]
[Date "2021.10.18"]
[Round "4.4"]
[White "Reinderman, Dimitri"]
[Black "Van der Lende, Ilias"]
[Result "0-1"]
[TimeControl "90min/40moves + 30min + 30sec/move"]
[WhiteElo "2596"]
[BlackElo "2388"]

1. e4 {[%clk 01:30:59]} e6 {[%clk 01:30:47]} {[%emt 00:00:13]} 2. d4 {[%clk
01:31:24]} {[%emt 00:00:05]} d5 {[%clk 01:31:12]} {[%emt 00:00:05]} 3. e5
{[%clk 01:31:52]} {[%emt 00:00:03]} c5 {[%clk 01:31:26]} {[%emt 00:00:16]} 4.
c3 {[%clk 01:32:17]} {[%emt 00:00:05]} Nc6 {[%clk 01:31:41]} {[%emt 00:00:14]}
5. Nf3 {[%clk 01:32:42]} {[%emt 00:00:05]} Qb6 {[%clk 01:30:15]} {[%emt
00:01:57]} 6. Bd3 {[%clk 01:32:54]} {[%emt 00:00:17]} cxd4 {[%clk 01:28:34]}
{[%emt 00:02:11]} 7. cxd4 {[%clk 01:33:18]} {[%emt 00:00:07]} Bd7 {[%clk
01:28:49]} {[%emt 00:00:13]} 8. O-O {[%clk 01:33:32]} {[%emt 00:00:17]} Nb4
{[%clk 01:25:37]} {[%emt 00:03:43]} 9. Be2 {[%clk 01:31:48]} {[%emt 00:02:13]}
Bb5 {[%clk 01:25:57]} {[%emt 00:00:10]} 10. Bxb5+ {[%clk 01:31:02]} {[%emt
00:01:17]} Qxb5 {[%clk 01:26:21]} {[%emt 00:00:05]} 11. Nc3 {[%clk 01:31:21]}
{[%emt 00:00:11]} Qc4 {[%clk 01:19:49]} {[%emt 00:07:02]} 12. Be3 {[%clk
01:26:37]} {[%emt 00:05:14]} Ne7 {[%clk 01:15:19]} {[%emt 00:04:59]} 13. Nd2
{[%clk 01:16:32]} {[%emt 00:10:36]} Qa6 {[%clk 01:13:17]} {[%emt 00:02:32]} 14.
Qb3 {[%clk 01:05:55]} {[%emt 00:11:06]} Nf5 {[%clk 01:12:53]} {[%emt 00:00:55]}
15. a3 {[%clk 01:00:29]} {[%emt 00:05:56]} Nc6 {[%clk 01:13:12]} {[%emt
00:00:11]} 16. Nf3 {[%clk 01:00:33]} {[%emt 00:00:26]} Be7 {[%clk 01:10:17]}
{[%emt 00:03:25]} 17. Qc2 {[%clk 01:00:06]} {[%emt 00:00:57]} Nxe3 {[%clk
01:06:28]} {[%emt 00:04:19]} 18. fxe3 {[%clk 01:00:30]} {[%emt 00:00:06]} O-O
{[%clk 01:03:02]} {[%emt 00:03:55]} 19. b4 {[%clk 00:59:48]} {[%emt 00:01:13]}
Rac8 {[%clk 00:57:30]} {[%emt 00:06:01]} 20. Qd2 {[%clk 00:47:54]} {[%emt
00:12:24]} Qc4 {[%clk 00:51:00]} {[%emt 00:07:01]} 21. Rfc1 {[%clk 00:33:31]}
{[%emt 00:14:53]} Nxb4 {[%clk 00:44:39]} {[%emt 00:06:50]} 22. axb4 {[%clk
00:30:19]} {[%emt 00:03:42]} Bxb4 {[%clk 00:44:56]} {[%emt 00:00:14]} 23. Qd1
{[%clk 00:30:14]} {[%emt 00:00:35]} Bxc3 {[%clk 00:44:04]} {[%emt 00:01:21]} 24.
Ra3 {[%clk 00:30:08]} {[%emt 00:00:36]} Qb4 {[%clk 00:41:50]} {[%emt 00:02:44]}
25. Rxa7 {[%clk 00:22:50]} {[%emt 00:07:48]} b5 {[%clk 00:37:43]} {[%emt
00:04:37]} 26. Rb7 {[%clk 00:13:39]} {[%emt 00:09:42]} Qa5 {[%clk 00:29:16]}
{[%emt 00:08:57]} 27. Qd3 {[%clk 00:04:33]} {[%emt 00:09:35]} b4 {[%clk
00:28:23]} {[%emt 00:01:23]} 28. Ng5 {[%clk 00:03:28]} {[%emt 00:01:35]} g6
{[%clk 00:28:48]} {[%emt 00:00:05]} 29. Rd1 {[%clk 00:02:57]} {[%emt 00:01:01]}
Rc7 {[%clk 00:25:35]} {[%emt 00:03:43]} 30. Rxc7 {[%clk 00:00:41]} {[%emt
00:02:46]} Qxc7 {[%clk 00:25:59]} {[%emt 00:00:06]} 31. e4 {[%clk 00:01:06]}
{[%emt 00:00:05]} h6 {[%clk 00:22:07]} {[%emt 00:04:22]} 32. Nf3 {[%clk
00:01:30]} {[%emt 00:00:06]} Rd8 {[%clk 00:21:58]} {[%emt 00:00:39]} 33. h4
{[%clk 00:01:08]} {[%emt 00:00:52]} b3 {[%clk 00:17:59]} {[%emt 00:04:30]} 34.
exd5 {[%clk 00:01:04]} {[%emt 00:00:34]} Rxd5 {[%clk 00:18:20]} {[%emt
00:00:08]} 35. Kh1 {[%clk 00:01:14]} {[%emt 00:00:20]} b2 {[%clk 00:17:58]}
{[%emt 00:00:52]} 36. Qe3 {[%clk 00:01:28]} {[%emt 00:00:16]} Bxd4 {[%clk
00:15:09]} {[%emt 00:03:19]} 37. Nxd4 {[%clk 00:01:22]} {[%emt 00:00:36]} Qb6
{[%clk 00:15:30]} {[%emt 00:00:09]} 38. Qe1 {[%clk 00:00:51]} {[%emt 00:01:01]}
Rxd4 {[%clk 00:15:22]} {[%emt 00:00:38]} 39. Rb1 {[%clk 00:01:17]} {[%emt
00:00:04]} Qb3 {[%clk 00:14:50]} {[%emt 00:01:02]} 40. Kg1 {[%clk 00:01:03]}
{[%emt 00:00:44]} Qc2 {[%clk 00:15:09]} {[%emt 00:00:11]} 0-1

[Event "Deloitte NK 2021"]
[Site "Hoogeveen, Netherlands"]
[Date "2021.10.18"]
[Round "4.5"]
[White "Swinkels, Robin"]
[Black "Sokolov, Ivan"]
[Result "1/2-1/2"]
[TimeControl "90min/40moves + 30min + 30sec/move"]
[WhiteElo "2509"]
[BlackElo "2595"]

1. e4 {[%clk 01:30:59]} e5 {[%clk 01:26:51]} {[%emt 00:04:09]} 2. Nf3 {[%clk
01:31:21]} {[%emt 00:00:08]} Nc6 {[%clk 01:27:17]} {[%emt 00:00:04]} 3. Bc4
{[%clk 01:31:44]} {[%emt 00:00:07]} Bc5 {[%clk 01:25:33]} {[%emt 00:02:14]} 4.
c3 {[%clk 01:31:02]} {[%emt 00:01:13]} Nf6 {[%clk 01:25:55]} {[%emt 00:00:07]}
5. d4 {[%clk 01:31:02]} {[%emt 00:00:31]} exd4 {[%clk 01:26:06]} {[%emt
00:00:19]} 6. e5 {[%clk 01:31:26]} {[%emt 00:00:05]} d5 {[%clk 01:26:32]}
{[%emt 00:00:04]} 7. Bb5 {[%clk 01:31:46]} {[%emt 00:00:10]} Ne4 {[%clk
01:26:55]} {[%emt 00:00:06]} 8. cxd4 {[%clk 01:32:10]} {[%emt 00:00:07]} Bb6
{[%clk 01:26:57]} {[%emt 00:00:28]} 9. Nc3 {[%clk 01:32:10]} {[%emt 00:00:31]}
O-O {[%clk 01:25:50]} {[%emt 00:01:36]} 10. Be3 {[%clk 01:32:28]} {[%emt
00:00:12]} Ne7 {[%clk 01:23:53]} {[%emt 00:02:27]} 11. Bd3 {[%clk 01:31:45]}
{[%emt 00:01:13]} Bf5 {[%clk 01:16:51]} {[%emt 00:07:33]} 12. O-O {[%clk
01:31:34]} {[%emt 00:00:41]} Qd7 {[%clk 01:02:36]} {[%emt 00:14:44]} 13. a4
{[%clk 01:23:04]} {[%emt 00:09:01]} Nxc3 {[%clk 00:51:41]} {[%emt 00:11:24]} 14.
bxc3 {[%clk 01:22:59]} {[%emt 00:00:35]} Ba5 {[%clk 00:52:10]} {[%emt
00:00:02]} 15. Nh4 {[%clk 01:05:02]} {[%emt 00:18:27]} Bxd3 {[%clk 00:47:16]}
{[%emt 00:05:24]} 16. Qxd3 {[%clk 01:05:29]} {[%emt 00:00:03]} Qg4 {[%clk
00:37:27]} {[%emt 00:10:17]} 17. g3 {[%clk 00:58:37]} {[%emt 00:07:24]} f6
{[%clk 00:35:37]} {[%emt 00:02:20]} 18. f3 {[%clk 00:52:58]} {[%emt 00:06:09]}
Qe6 {[%clk 00:36:04]} {[%emt 00:00:02]} 19. f4 {[%clk 00:51:19]} {[%emt
00:02:10]} Qc6 {[%clk 00:35:52]} {[%emt 00:00:42]} 20. Rac1 {[%clk 00:45:38]}
{[%emt 00:06:12]} Qc4 {[%clk 00:34:17]} {[%emt 00:02:04]} 21. Qc2 {[%clk
00:45:10]} {[%emt 00:00:59]} f5 {[%clk 00:24:43]} {[%emt 00:10:03]} 22. Nf3
{[%clk 00:42:33]} {[%emt 00:03:07]} b5 {[%clk 00:25:12]} {[%emt 00:00:02]} 23.
Nd2 {[%clk 00:34:59]} {[%emt 00:08:04]} Qc6 {[%clk 00:22:21]} {[%emt 00:03:20]}
24. Nb3 {[%clk 00:31:18]} {[%emt 00:04:11]} bxa4 {[%clk 00:21:38]} {[%emt
00:01:13]} 25. Nxa5 {[%clk 00:31:45]} {[%emt 00:00:04]} Qb5 {[%clk 00:22:02]}
{[%emt 00:00:05]} 26. Ra1 {[%clk 00:30:55]} {[%emt 00:01:21]} Qxa5 {[%clk
00:22:25]} {[%emt 00:00:06]} 27. Rxa4 {[%clk 00:31:13]} {[%emt 00:00:13]} Qb5
{[%clk 00:22:24]} {[%emt 00:00:30]} 28. Rb1 {[%clk 00:23:56]} {[%emt 00:07:48]}
Qc6 {[%clk 00:22:51]} {[%emt 00:00:01]} 29. Bc1 {[%clk 00:20:53]} {[%emt
00:03:34]} Nc8 {[%clk 00:22:51]} {[%emt 00:00:31]} 30. Rba1 {[%clk 00:20:44]}
{[%emt 00:00:39]} Nb6 {[%clk 00:16:51]} {[%emt 00:06:29]} 31. Rxa7 {[%clk
00:18:48]} {[%emt 00:02:27]} g6 {[%clk 00:17:19]} 32. h3 {[%clk 00:04:17]}
{[%emt 00:15:01]} Kf7 {[%clk 00:14:22]} {[%emt 00:03:26]} 33. g4 {[%clk
00:04:15]} {[%emt 00:00:33]} Ke6 {[%clk 00:14:51]} 34. Qb3 {[%clk 00:01:47]}
{[%emt 00:02:58]} Rxa7 {[%clk 00:09:02]} {[%emt 00:06:19]} 35. Rxa7 {[%clk
00:02:15]} {[%emt 00:00:02]} Ra8 {[%clk 00:09:31]} 36. Rxa8 {[%clk 00:02:26]}
{[%emt 00:00:20]} Qxa8 {[%clk 00:09:58]} {[%emt 00:00:02]} 37. Qa3 {[%clk
00:01:25]} {[%emt 00:01:32]} Qc6 {[%clk 00:06:08]} {[%emt 00:04:18]} 38. Qf8
{[%clk 00:01:31]} {[%emt 00:00:25]} Kd7 {[%clk 00:06:37]} {[%emt 00:00:02]} 39.
Ba3 {[%clk 00:01:31]} {[%emt 00:00:30]} Qxc3 {[%clk 00:05:08]} {[%emt
00:01:57]} 40. e6+ {[%clk 00:01:48]} {[%emt 00:00:14]} Kc6 {[%clk 00:05:34]}
{[%emt 00:00:04]} 41. e7 {[%clk 00:18:59]} {[%emt 00:13:20]} Qg3+ {[%clk
00:33:43]} {[%emt 00:02:20]} 1/2-1/2